bitfinex/quotes_BTCUSD_20250623
["timestamp","ask_amount","ask_price","bid_price","bid_amount"]
[1750701818161,0.02422059,102870.0,102860.0,0.62094314]
[1750701818967,0.02422059,102870.0,102860.0,0.65134314]
[1750701819177,0.001,102870.0,102860.0,0.62094314]
[1750701819703,0.001,102870.0,102860.0,0.61994314]
[1750701819973,0.37811736,102890.0,102880.0,0.22356028]
[1750701819974,0.34,102890.0,102880.0,0.22356028]
[1750701820206,0.36324807,102890.0,102880.0,0.56085967]
[1750701820386,0.02324807,102890.0,102880.0,0.56085967]
[1750701820926,0.00055862,102900.0,102890.0,0.22353855]
[1750701821155,0.0238014,102900.0,102890.0,0.43271794]
[1750701821385,0.00055862,102900.0,102890.0,0.43271794]
[1750701821594,0.00055862,102900.0,102890.0,0.51209483]
[1750701822041,0.00055862,102900.0,102890.0,0.54439483]
[1750701822290,0.00055862,102900.0,102890.0,0.80845483]
[1750701822735,0.00055862,102900.0,102890.0,0.81145483]
[1750701822951,0.00055862,102900.0,102890.0,0.72307483]
[1750701823408,0.00055862,102900.0,102890.0,0.61139794]
[1750701823669,0.00055862,102900.0,102890.0,0.91789794]
[1750701823906,0.00055862,102900.0,102890.0,1.62461336]
[1750701824346,0.00055862,102900.0,102890.0,1.99036721]
[1750701824589,0.00055862,102900.0,102890.0,2.06126203]
[1750701824882,0.00055862,102900.0,102890.0,2.31126203]
[1750701825115,0.0001,102920.0,102910.0,0.33413289]
[1750701825338,0.00023753,102920.0,102910.0,0.37353228]
[1750701825568,0.00023753,102920.0,102910.0,0.61957228]
[1750701826030,0.00023753,102920.0,102910.0,0.64907228]
[1750701826517,0.00023753,102920.0,102910.0,0.51065228]
[1750701826739,0.00023753,102920.0,102910.0,0.56265228]
[1750701826968,0.00023753,102920.0,102910.0,0.56365228]
[1750701827429,0.2,102930.0,102920.0,0.27347339]
[1750701827650,0.2,102930.0,102920.0,0.61993278]
[1750701828128,0.2,102930.0,102920.0,0.65243278]
[1750701828361,0.2,102930.0,102920.0,0.69887363]
[1750701828594,0.2,102930.0,102920.0,0.37377278]
[1750701828850,0.2,102930.0,102920.0,0.56097278]
[1750701829980,0.2,102930.0,102920.0,0.57044878]
[1750701831781,0.2,102930.0,102920.0,0.66336652]
[1750701832031,0.2,102930.0,102920.0,0.72396652]
[1750701832282,0.2,102930.0,102920.0,1.3367642]
[1750701833018,0.2,102930.0,102920.0,1.3357642]
[1750701833250,0.2,102930.0,102920.0,1.10406335]
[1750701833465,0.2,102930.0,102920.0,0.78316652]
[1750701833722,0.2,102930.0,102920.0,0.78216652]
[1750701834177,0.2,102930.0,102920.0,0.81136552]
[1750701834634,0.2,102930.0,102920.0,1.4241232]
[1750701834860,0.2,102930.0,102920.0,1.4231232]
[1750701835568,0.2,102930.0,102920.0,0.48542863]
[1750701835779,0.2,102930.0,102920.0,0.72986863]
[1750701836027,0.2,102930.0,102920.0,0.45332863]
[1750701836282,0.2,102930.0,102920.0,0.65304778]
[1750701836787,0.2,102930.0,102920.0,0.64833159]
[1750701836969,0.2,102930.0,102920.0,0.65792778]
[1750701837650,0.2,102930.0,102920.0,0.70466863]
[1750701837891,0.2,102930.0,102920.0,1.7696432]
[1750701838118,0.02690575,102930.0,102920.0,0.96060552]
[1750701838340,0.02690575,102930.0,102920.0,1.09064552]
[1750701838770,2.004,102950.0,102940.0,0.25400223]
[1750701838771,1.78340223,102950.0,102940.0,0.25400223]
[1750701838997,1.84770223,102950.0,102940.0,0.53082732]
[1750701839245,2.46049991,102950.0,102940.0,0.54054171]
[1750701839491,1.84770223,102950.0,102940.0,0.55025601]
[1750701839729,1.84770223,102950.0,102940.0,0.54054171]
[1750701839957,1.84770223,102950.0,102940.0,0.55025601]
[1750701840197,0.0643,102930.0,102920.0,0.031199]
[1750701840416,0.34,102920.0,102890.0,0.051]
[1750701840647,1.01619768,102900.0,102890.0,0.10143692]
[1750701840875,1.01619768,102900.0,102890.0,0.28827692]
[1750701841099,0.0634,102900.0,102890.0,0.28827692]
[1750701841281,0.0634,102900.0,102890.0,0.33827692]
[1750701841563,0.0634,102900.0,102890.0,0.33843692]
[1750701841791,0.4038,102920.0,102900.0,0.05]
[1750701842017,0.0322,102910.0,102900.0,0.05]
[1750701842243,0.0322,102910.0,102900.0,0.15029939]
[1750701842466,0.0322,102910.0,102900.0,0.14829939]
[1750701842714,0.67799768,102910.0,102900.0,0.14829939]
[1750701843166,0.0631,102900.0,102890.0,0.18873753]
[1750701843381,1.01589768,102900.0,102890.0,0.18873753]
[1750701843605,1.03902041,102900.0,102890.0,0.00113753]
[1750701844269,0.42622273,102900.0,102890.0,0.00113753]
[1750701844484,1.03902041,102900.0,102890.0,0.00113753]
[1750701844703,1.01589768,102900.0,102890.0,0.00113753]
[1750701844918,1.01789768,102900.0,102890.0,0.00113753]
[1750701845143,1.01789768,102900.0,102890.0,0.18917753]
[1750701845378,1.01589768,102900.0,102890.0,0.18917753]
[1750701845595,1.01989768,102900.0,102890.0,0.18917753]
[1750701845813,1.01989768,102900.0,102890.0,0.18913753]
[1750701846039,1.02089768,102900.0,102890.0,0.18913753]
[1750701846468,1.02089768,102900.0,102890.0,0.00113753]
[1750701847137,1.02089768,102900.0,102890.0,0.18081381]
[1750701847138,0.0681,102900.0,102890.0,0.18081381]
[1750701847358,0.0681,102900.0,102890.0,0.36861381]
[1750701847755,0.68089768,102900.0,102890.0,0.18081381]
[1750701848010,0.68089768,102900.0,102890.0,0.18893753]
[1750701848233,0.68089768,102900.0,102890.0,0.28923692]
[1750701848495,0.68089768,102900.0,102890.0,0.00113753]
[1750701848725,0.68089768,102900.0,102890.0,0.28935692]
[1750701848968,0.0681,102900.0,102890.0,0.62083518]
[1750701849161,0.005,102900.0,102890.0,0.42645292]
[1750701849401,0.64979768,102900.0,102890.0,0.33735692]
[1750701849583,0.68059768,102900.0,102890.0,0.14943692]
[1750701849800,0.68059768,102900.0,102890.0,0.33739692]
[1750701850063,0.68059768,102900.0,102890.0,0.14943692]
[1750701850283,0.67959768,102900.0,102890.0,0.18909753]
[1750701850497,0.67959768,102900.0,102890.0,0.19101753]
[1750701850721,0.67559768,102900.0,102890.0,0.00313753]
[1750701850937,0.0301,102900.0,102890.0,0.33931692]
[1750701851154,0.0311,102900.0,102890.0,0.55213721]
[1750701851331,0.002,102900.0,102890.0,0.64195128]
[1750701851578,0.001,102900.0,102890.0,0.64195128]
[1750701852036,0.005,102900.0,102890.0,0.64195128]
[1750701852267,0.005,102900.0,102890.0,0.68869213]
[1750701852482,0.002,102900.0,102890.0,1.90516981]
[1750701852957,0.002,102900.0,102890.0,1.95516981]
[1750701853177,0.002,102900.0,102890.0,1.95616981]
[1750701853609,0.002,102900.0,102890.0,1.95516981]
[1750701853839,0.002,102900.0,102890.0,1.11649213]
[1750701854054,0.001,102900.0,102890.0,1.28691128]
[1750701854483,0.001,102900.0,102890.0,1.35631128]
[1750701854921,0.001,102900.0,102890.0,1.32611128]
[1750701855315,0.001,102900.0,102890.0,1.24673439]
[1750701855801,0.001,102900.0,102890.0,1.21453439]
[1750701856442,0.001,102900.0,102890.0,0.96717439]
[1750701856666,0.001,102900.0,102890.0,0.89183874]
[1750701857154,0.001,102900.0,102890.0,0.89163874]
[1750701857829,0.001,102900.0,102890.0,0.88463874]
[1750701858034,0.001,102900.0,102890.0,0.88663874]
[1750701858252,0.001,102900.0,102890.0,0.86905439]
[1750701858470,0.001,102900.0,102890.0,0.88664661]
[1750701858683,0.001,102900.0,102890.0,0.6194906]
[1750701858933,0.001,102900.0,102890.0,0.86492769]
[1750701859170,0.001,102900.0,102890.0,1.55756622]
[1750701859388,0.001,102900.0,102890.0,1.89956622]
[1750701860071,0.001,102900.0,102890.0,1.28676854]
[1750701860307,0.001,102900.0,102890.0,1.21646854]
[1750701860524,0.001,102900.0,102890.0,1.22046854]
[1750701860760,0.001,102900.0,102890.0,1.28376854]
[1750701860992,0.001,102900.0,102890.0,1.26617632]
[1750701861223,0.001,102900.0,102890.0,1.2837624]
[1750701861704,0.001,102900.0,102890.0,1.89656008]
[1750701861937,0.001,102900.0,102890.0,1.2907624]
[1750701862376,0.001,102900.0,102890.0,1.2906624]
[1750701862596,0.001,102900.0,102890.0,1.29066952]
[1750701862883,0.001,102900.0,102890.0,1.25896952]
[1750701863107,0.001,102900.0,102890.0,1.9338752]
[1750701864220,2.39619991,102950.0,102920.0,0.23317361]
[1750701864436,2.39619991,102950.0,102930.0,0.28801939]
[1750701864437,0.67519768,102940.0,102930.0,0.28801939]
[1750701864703,0.67519768,102940.0,102930.0,0.30561259]
[1750701865154,0.67519768,102940.0,102930.0,0.2051132]
[1750701865871,0.67633516,102940.0,102930.0,0.2051132]
[1750701866094,1.03950607,102940.0,102900.0,0.05888]
[1750701866281,0.61279768,102910.0,102900.0,0.28757939]
[1750701866756,0.61279768,102910.0,102880.0,0.25728097]
[1750701866757,0.61279768,102910.0,102880.0,0.004]
[1750701866971,0.67569768,102890.0,102880.0,0.10429939]
[1750701867184,0.0629,102890.0,102880.0,0.29157939]
[1750701867847,0.0629,102890.0,102880.0,0.50542046]
[1750701868059,0.67569768,102890.0,102880.0,0.48598063]
[1750701868267,0.67569768,102890.0,102880.0,0.48643925]
[1750701868497,0.0629,102890.0,102880.0,0.49715921]
[1750701868726,0.0629,102890.0,102880.0,0.48743925]
[1750701868955,0.07789189,102890.0,102880.0,0.48743925]
[1750701869161,0.0629,102890.0,102880.0,0.48723925]
[1750701869599,0.0629,102890.0,102880.0,0.48923925]
[1750701869827,0.0629,102890.0,102880.0,0.49895931]
[1750701870056,0.0629,102890.0,102880.0,0.55667918]
[1750701870272,0.0302,102890.0,102880.0,0.57611826]
[1750701870745,0.0302,102890.0,102880.0,0.56639886]
[1750701870965,0.0302,102890.0,102880.0,0.58583775]
[1750701871397,0.0302,102890.0,102880.0,0.57611844]
[1750701871616,0.0302,102890.0,102880.0,0.58583784]
[1750701871842,0.0302,102900.0,102890.0,0.27153855]
[1750701872057,0.0302,102900.0,102890.0,0.37183794]
[1750701872281,0.3727,102920.0,102910.0,0.19434457]
[1750701872496,0.34,102920.0,102910.0,0.38206457]
[1750701872914,0.3702,102920.0,102910.0,0.38206457]
[1750701873133,0.4029,102920.0,102910.0,0.38206457]
[1750701873771,0.4039,102920.0,102910.0,0.3917817]
[1750701873985,0.4039,102920.0,102910.0,0.38206457]
[1750701874397,0.4039,102920.0,102910.0,0.19434457]
[1750701874612,0.4039,102920.0,102910.0,0.38086457]
[1750701874851,0.95379768,102920.0,102900.0,0.19436345]
[1750701875062,0.97700341,102920.0,102910.0,0.18732]
[1750701875274,0.34,102910.0,102900.0,0.18744]
[1750701875485,1.03890656,102910.0,102900.0,0.18744]
[1750701875924,0.0629,102890.0,102880.0,0.19885986]
[1750701876170,0.0629,102890.0,102880.0,0.54531925]
[1750701876414,0.0629,102890.0,102880.0,0.00445862]
[1750701876641,1.01569768,102890.0,102880.0,0.19173862]
[1750701876853,1.03891507,102890.0,102880.0,0.19173862]
[1750701877069,0.85692733,102890.0,102880.0,0.19173862]
[1750701877294,0.36321739,102890.0,102880.0,0.19173862]
[1750701877720,0.36305261,102890.0,102880.0,0.19173862]
[1750701877933,0.97585029,102890.0,102880.0,0.19173862]
[1750701878398,0.97585029,102890.0,102880.0,0.19373862]
[1750701879252,0.97585029,102890.0,102880.0,0.19673862]
[1750701879985,0.97585029,102890.0,102880.0,0.00945862]
[1750701880223,1.13904968,102890.0,102880.0,0.00945862]
[1750701880697,1.13904968,102890.0,102880.0,0.20385986]
[1750701880928,1.13904968,102890.0,102880.0,0.20085986]
[1750701880929,0.40273522,102890.0,102880.0,0.20085986]
[1750701881162,0.0311,102890.0,102880.0,0.19885986]
[1750701881384,0.0321,102890.0,102880.0,0.19885986]
[1750701882342,0.0321,102890.0,102880.0,0.43519829]
[1750701882343,0.001,102890.0,102880.0,0.43519829]
[1750701882568,0.0634,102910.0,102900.0,0.19436345]
[1750701882808,0.4034,102910.0,102900.0,0.38148345]
[1750701883777,0.95279768,102910.0,102890.0,0.1943655]
[1750701884009,0.61279768,102900.0,102880.0,0.30415925]
[1750701884245,0.67849768,102890.0,102880.0,0.00445862]
[1750701884501,0.4057,102890.0,102880.0,0.38585986]
[1750701884730,1.01849768,102890.0,102880.0,0.38585986]
[1750701884955,1.01849768,102890.0,102880.0,0.19141862]
[1750701885166,1.01849768,102890.0,102880.0,0.19341862]
[1750701885406,1.04168732,102890.0,102880.0,0.19129862]
[1750701886168,1.2422861,102890.0,102880.0,0.00545862]
[1750701886629,1.2422861,102890.0,102880.0,0.00445862]
[1750701887107,1.28581903,102890.0,102880.0,0.00445862]
[1750701887340,0.67449768,102870.0,102860.0,0.0002]
[1750701887606,0.0617,102870.0,102860.0,0.18688]
[1750701887862,0.08488193,102870.0,102860.0,0.18688]
[1750701888091,0.69767961,102870.0,102860.0,0.18688]
[1750701888307,0.67449768,102870.0,102860.0,0.0002]
[1750701888526,0.69767981,102870.0,102860.0,0.18676]
[1750701888743,0.69767981,102870.0,102860.0,0.0002]
[1750701888991,1.1379792,102870.0,102860.0,0.0022]
[1750701889258,0.031,102850.0,102840.0,0.0042]
[1750701889516,0.4017,102840.0,102830.0,0.0002]
[1750701889754,1.15252005,102840.0,102830.0,0.00033777]
[1750701889990,1.18176705,102840.0,102830.0,0.00033777]
[1750701890221,1.31104483,102840.0,102830.0,0.00033777]
[1750701890705,1.28179783,102840.0,102830.0,0.00033777]
[1750701891154,1.28379783,102840.0,102830.0,0.00033777]
[1750701891385,0.55615991,102840.0,102830.0,0.00033777]
[1750701891604,0.45586052,102840.0,102830.0,0.19483353]
[1750701891835,0.39588213,102840.0,102830.0,0.46061042]
[1750701892057,0.002,102840.0,102830.0,0.56090981]
[1750701892276,0.004,102840.0,102830.0,0.56090981]
[1750701892925,0.004,102840.0,102830.0,0.37450981]
[1750701893140,0.002,102840.0,102830.0,0.56106981]
[1750701893422,0.002,102840.0,102830.0,0.56406981]
[1750701893641,0.369247,102850.0,102830.0,0.56406981]
[1750701894067,0.61279768,102840.0,102830.0,0.00433777]
[1750701894284,1.02321215,102840.0,102830.0,0.00433777]
[1750701894503,1.00755234,102840.0,102830.0,0.38523353]
[1750701894715,0.39475466,102840.0,102830.0,0.38423353]
[1750701894930,0.39475466,102840.0,102830.0,0.18973777]
[1750701895171,0.3716,102840.0,102830.0,0.38423353]
[1750701895388,0.3716,102840.0,102830.0,0.18673777]
[1750701895606,0.39476188,102840.0,102830.0,0.18773777]
[1750701896683,1.00755956,102840.0,102830.0,0.38123353]
[1750701896899,0.39476188,102840.0,102830.0,0.38423353]
[1750701897329,0.34,102840.0,102830.0,0.38563353]
[1750701897981,0.34,102840.0,102830.0,0.19983353]
[1750701898206,0.34,102840.0,102830.0,0.38555353]
[1750701898433,0.34,102840.0,102830.0,0.19105777]
[1750701898873,0.34,102840.0,102830.0,0.38555353]
[1750701899099,0.34,102840.0,102830.0,0.19105777]
[1750701899317,0.34,102840.0,102830.0,0.38555353]
[1750701899780,0.34,102840.0,102830.0,0.53385292]
[1750701900677,0.029238,102850.0,102840.0,0.19447685]
[1750701900892,0.3631567,102850.0,102840.0,0.19447685]
[1750701901110,0.029236,102860.0,102850.0,0.19445794]
[1750701901338,0.58068417,102880.0,102860.0,0.21388227]
[1750701901339,0.07650186,102880.0,102860.0,0.21388227]
[1750701901559,0.02894508,102890.0,102880.0,0.19440124]
[1750701901784,0.67224276,102900.0,102880.0,0.19440124]
[1750701902002,0.0825995,102900.0,102890.0,0.38002235]
[1750701902220,0.08287942,102900.0,102890.0,0.38002235]
[1750701902435,0.05237942,102900.0,102890.0,0.38002235]
[1750701902658,0.39237942,102900.0,102890.0,0.38002235]
[1750701902911,0.02361276,102900.0,102890.0,0.39946029]
[1750701903128,0.00045834,102900.0,102890.0,0.52832174]
[1750701903572,0.00045834,102900.0,102890.0,0.53804066]
[1750701903786,0.00045834,102900.0,102890.0,0.54775949]
[1750701904029,0.00145834,102900.0,102890.0,0.59017794]
[1750701904261,0.00145834,102900.0,102890.0,0.62247794]
[1750701904262,0.00045834,102900.0,102890.0,0.62247794]
[1750701904511,0.00045834,102900.0,102890.0,0.70185483]
[1750701904760,0.004,102910.0,102900.0,0.9488145]
[1750701904986,0.0041374,102910.0,102900.0,1.10687389]
[1750701905205,0.3,102930.0,102920.0,0.33657339]
[1750701905436,0.3,102930.0,102920.0,0.62575278]
[1750701905859,0.3,102930.0,102920.0,0.43687278]
[1750701906110,0.3,102930.0,102920.0,0.68595278]
[1750701906331,0.3,102930.0,102920.0,0.43687278]
[1750701906551,0.3,102930.0,102920.0,0.69143278]
[1750701906997,0.3,102930.0,102920.0,0.35634116]
[1750701907216,0.3,102930.0,102920.0,0.62565278]
[1750701907440,0.91279768,102930.0,102920.0,0.15229939]
[1750701907648,0.64,102930.0,102920.0,0.35037939]
[1750701907868,1.25279768,102930.0,102920.0,0.20308]
[1750701908329,0.64,102930.0,102920.0,0.38940568]
[1750701908564,1.25279768,102930.0,102920.0,0.19008]
[1750701908796,1.25279768,102930.0,102920.0,0.19608]
[1750701909023,0.64,102930.0,102920.0,0.19608]
[1750701909267,0.64,102930.0,102920.0,0.19308]
[1750701909505,1.25279768,102930.0,102920.0,0.19608]
[1750701909735,1.25279768,102930.0,102920.0,0.006]
[1750701909964,1.25279768,102930.0,102920.0,0.003]
[1750701910193,1.25279768,102930.0,102920.0,0.007]
[1750701910691,0.64,102930.0,102920.0,0.007]
[1750701910939,1.25279768,102930.0,102920.0,0.007]
[1750701911486,0.3,102930.0,102920.0,0.10729939]
[1750701911709,0.3,102930.0,102920.0,0.30162507]
[1750701911947,0.3,102930.0,102920.0,0.35834135]
[1750701912182,0.3,102930.0,102920.0,0.34862507]
[1750701912422,0.3,102930.0,102920.0,0.36805735]
[1750701912658,0.3,102930.0,102920.0,0.46686576]
[1750701912890,0.3,102930.0,102920.0,0.49746576]
[1750701913126,0.3,102930.0,102920.0,0.52806576]
[1750701913365,0.3,102930.0,102920.0,1.14086344]
[1750701913602,0.3,102930.0,102920.0,0.54260661]
[1750701914063,0.3,102930.0,102920.0,1.15140429]
[1750701914306,0.3,102930.0,102920.0,0.54460661]
[1750701914555,0.3,102930.0,102920.0,0.44468887]
[1750701915037,0.301,102930.0,102920.0,0.45268887]
[1750701915256,0.301,102930.0,102920.0,0.45668887]
[1750701915715,0.301,102930.0,102920.0,0.37205744]
[1750701915933,0.301,102930.0,102920.0,0.39148896]
[1750701916145,0.3,102930.0,102920.0,0.35834135]
[1750701916408,0.3,102930.0,102920.0,0.39548896]
[1750701916625,0.3,102930.0,102920.0,0.71246896]
[1750701917977,0.3,102930.0,102920.0,0.68036896]
[1750701918424,0.3,102930.0,102920.0,0.65016896]
[1750701918665,0.20382053,102930.0,102920.0,1.11770981]
[1750701918953,0.20382053,102930.0,102920.0,0.81602981]
[1750701919183,0.20382053,102930.0,102920.0,1.02432896]
[1750701919415,0.20382053,102930.0,102920.0,1.07436896]
[1750701919416,0.201291,102930.0,102920.0,1.07436896]
[1750701919644,0.201291,102930.0,102920.0,1.04963702]
[1750701919864,0.201291,102930.0,102920.0,1.67697555]
[1750701920080,0.203291,102930.0,102920.0,1.73207555]
[1750701920972,0.203291,102930.0,102920.0,1.65033555]
[1750701921202,0.203291,102930.0,102920.0,0.45587702]
[1750701921459,0.203291,102930.0,102920.0,0.64991702]
[1750701922354,0.202291,102930.0,102920.0,0.63991702]
[1750701922584,0.201291,102930.0,102920.0,0.62891702]
[1750701923056,0.201291,102930.0,102920.0,0.62691702]
[1750701923280,0.201291,102930.0,102920.0,0.37075702]
[1750701923511,0.197571,102930.0,102920.0,0.9835547]
[1750701923750,0.197571,102930.0,102920.0,1.2443947]
[1750701923969,0.197571,102930.0,102920.0,0.9885547]
[1750701924185,0.197571,102930.0,102920.0,1.2493947]
[1750701924443,0.197571,102930.0,102920.0,1.2543947]
[1750701924922,0.197571,102930.0,102920.0,1.29943555]
[1750701925152,0.197571,102930.0,102920.0,1.33173555]
[1750701925565,0.197571,102930.0,102920.0,1.67173555]
[1750701925566,0.197571,102930.0,102920.0,1.72173555]
[1750701925939,0.197571,102930.0,102920.0,1.10893787]
[1750701926158,0.197571,102930.0,102920.0,1.72273555]
[1750701926360,0.01047303,102930.0,102920.0,1.72273555]
[1750701926963,0.01047303,102930.0,102920.0,1.6758947]
[1750701927370,0.01047303,102930.0,102920.0,1.6608947]
[1750701927588,0.01047303,102930.0,102920.0,1.72013555]
[1750701928870,0.01047303,102930.0,102920.0,2.01633555]
[1750701930500,0.01047303,102930.0,102920.0,0.68095702]
[1750701930701,0.01047303,102930.0,102920.0,0.64063702]
[1750701930916,0.01047303,102930.0,102920.0,1.2534347]
[1750701931072,1.59876168,102950.0,102920.0,1.21457081]
[1750701931272,1.59885076,102950.0,102940.0,0.27042997]
[1750701931498,0.00365297,102970.0,102950.0,0.097]
[1750701931694,0.00365297,102970.0,102960.0,0.24125019]
[1750701931695,0.06625297,102970.0,102960.0,0.24125019]
[1750701932357,0.06625297,102970.0,102960.0,0.43441019]
[1750701932596,0.70222781,102970.0,102950.0,0.19426906]
[1750701932835,0.95279768,102960.0,102950.0,0.19426906]
[1750701933065,0.02317716,102960.0,102950.0,0.19426906]
[1750701933284,0.0626,102950.0,102940.0,0.24128793]
[1750701933496,0.08577716,102950.0,102940.0,0.34158732]
[1750701933720,0.08577716,102950.0,102930.0,0.24128997]
[1750701933944,0.0646,102940.0,102930.0,0.4329036]
[1750701934172,0.08777716,102940.0,102930.0,0.34167844]
[1750701934401,0.08777716,102940.0,102930.0,0.35139368]
[1750701934646,0.08777716,102940.0,102930.0,8.908e-05]
[1750701934857,0.08777716,102940.0,102930.0,0.38947589]
[1750701936610,0.08777716,102940.0,102930.0,0.19439589]
[1750701936830,0.08777716,102940.0,102930.0,0.38947589]
[1750701937087,0.08777716,102940.0,102930.0,0.27377278]
[1750701937327,0.08777716,102940.0,102930.0,0.46869278]
[1750701937558,0.08977716,102940.0,102930.0,0.47097278]
[1750701937765,0.08977716,102940.0,102930.0,0.51797278]
[1750701937992,0.02317716,102940.0,102930.0,1.23106985]
[1750701938214,0.0641,102960.0,102950.0,0.22340827]
[1750701938454,0.08730964,102960.0,102950.0,0.42064846]
[1750701939117,0.08730964,102960.0,102950.0,0.39150906]
[1750701939340,0.08730964,102960.0,102950.0,0.41193568]
[1750701939556,0.08730964,102960.0,102950.0,0.41193586]
[1750701939775,0.08730964,102960.0,102950.0,0.58837428]
[1750701940007,0.0641,102960.0,102950.0,0.66775117]
[1750701941356,0.0641,102960.0,102950.0,0.46079838]
[1750701941568,0.08733231,102960.0,102950.0,0.63286785]
[1750701942005,0.08733231,102960.0,102950.0,0.62315497]
[1750701942222,0.08733231,102960.0,102950.0,0.64230064]
[1750701942467,0.00365297,102970.0,102960.0,0.27038657]
[1750701942697,0.00365297,102970.0,102960.0,0.37068596]
[1750701942698,0.03455297,102970.0,102960.0,0.37068596]
[1750701942917,0.06585297,102970.0,102960.0,0.63164596]
[1750701943835,0.06585297,102970.0,102960.0,0.63140596]
[1750701944047,0.06585297,102970.0,102960.0,0.63440596]
[1750701944274,0.06585297,102970.0,102960.0,0.63540596]
[1750701944995,0.00365297,102970.0,102960.0,1.24820364]
[1750701945640,0.06805297,102970.0,102960.0,0.37468596]
[1750701946062,0.06805297,102970.0,102960.0,0.63520596]
[1750701946937,0.06805297,102970.0,102960.0,0.37468596]
[1750701947157,0.06805297,102970.0,102960.0,0.64475799]
[1750701947440,0.06805297,102970.0,102960.0,0.64475809]
[1750701947713,0.06805297,102970.0,102960.0,0.34554958]
[1750701947947,0.06805297,102970.0,102960.0,0.19968]
[1750701948159,0.09683366,102970.0,102960.0,0.19968]
[1750701948372,0.09683366,102970.0,102930.0,0.32077278]
[1750701948373,1.13585681,102970.0,102930.0,0.32077278]
[1750701948598,0.0631,102940.0,102930.0,8.908e-05]
[1750701948841,0.67589768,102940.0,102930.0,8.908e-05]
[1750701949059,1.08358268,102940.0,102930.0,0.19572908]
[1750701949284,1.05453553,102940.0,102930.0,8.908e-05]
[1750701949498,1.21281909,102940.0,102930.0,0.19580908]
[1750701949704,1.17418124,102940.0,102930.0,0.19580908]
[1750701949935,1.17418124,102940.0,102930.0,0.19680908]
[1750701950161,1.17718124,102940.0,102930.0,0.00108908]
[1750701950378,1.17718124,102940.0,102930.0,3.19572908]
[1750701950604,0.77408124,102940.0,102930.0,3.19572908]
[1750701950822,0.0659,102940.0,102930.0,3.19572908]
[1750701951292,0.67869768,102940.0,102930.0,3.00008908]
[1750701951521,1.06139113,102940.0,102930.0,3.19604908]
[1750701951960,1.21897068,102940.0,102930.0,3.00008908]
[1750701952179,1.23421554,102940.0,102930.0,3.10038908]
[1750701952393,1.17223137,102940.0,102930.0,3.10038908]
[1750701952620,0.10459345,102940.0,102930.0,3.10038908]
[1750701952857,0.09189878,102940.0,102930.0,3.10618908]
[1750701953078,0.0709,102940.0,102930.0,3.10618908]
[1750701953305,0.0709,102940.0,102930.0,3.10622908]
[1750701953520,0.64544943,102970.0,102930.0,3.25352847]
[1750701953739,0.0329,102950.0,102940.0,0.20272]
[1750701953954,0.064,102950.0,102940.0,0.19872]
[1750701954182,0.09299878,102950.0,102940.0,0.19872]
[1750701954394,0.08718925,102950.0,102940.0,0.19872]
[1750701954827,0.08718925,102950.0,102930.0,2.90438908]
[1750701955097,0.07,102940.0,102930.0,2.90438908]
[1750701955331,0.07,102940.0,102930.0,3.10690908]
[1750701955332,0.69898693,102940.0,102930.0,3.10690908]
[1750701955556,0.20102949,102940.0,102930.0,2.90438908]
[1750701955787,0.84282595,102940.0,102930.0,3.10674908]
[1750701956003,0.08708925,102940.0,102930.0,3.10674908]
[1750701956222,0.08708925,102940.0,102930.0,3.1065919]
[1750701956445,0.08708925,102940.0,102930.0,3.1075919]
[1750701956728,0.70088693,102940.0,102930.0,2.9052319]
[1750701956919,0.70088693,102940.0,102930.0,3.1063919]
[1750701957352,0.80118632,102940.0,102930.0,3.1063919]
[1750701957587,0.81572717,102940.0,102930.0,2.9042319]
[1750701957810,0.82473672,102940.0,102930.0,2.9042319]
[1750701958464,0.08808925,102940.0,102930.0,3.30033871]
[1750701958687,0.0649,102940.0,102930.0,3.30033871]
[1750701959381,0.0649,102940.0,102930.0,3.1060319]
[1750701959615,0.0649,102940.0,102930.0,3.30033871]
[1750701959847,0.0649,102940.0,102930.0,3.1060319]
[1750701960085,0.0649,102940.0,102930.0,3.30033871]
[1750701960574,0.001,102940.0,102930.0,3.32948358]
[1750701960800,0.001,102940.0,102930.0,3.47678297]
[1750701961020,0.001,102940.0,102930.0,3.4670683]
[1750701961460,0.001,102940.0,102930.0,3.47666297]
[1750701961673,0.001,102940.0,102930.0,3.47666307]
[1750701961905,0.001,102940.0,102930.0,3.48637774]
[1750701962117,0.0643,102960.0,102950.0,0.19426906]
[1750701962548,0.0643,102960.0,102950.0,0.20144]
[1750701962811,0.0643,102960.0,102940.0,0.2736484]
[1750701963038,0.61279768,102960.0,102950.0,0.20144]
[1750701963263,0.61379768,102960.0,102940.0,0.19427151]
[1750701963478,0.61379768,102960.0,102930.0,3.14553871]
[1750701963479,0.0322,102950.0,102930.0,3.14553871]
[1750701963701,0.0322,102950.0,102940.0,0.20136]
[1750701964194,0.0322,102950.0,102940.0,0.27366482]
[1750701964195,0.063,102950.0,102940.0,0.27366482]
[1750701964419,0.0308,102950.0,102940.0,0.52206482]
[1750701964654,0.0308,102950.0,102940.0,0.47506482]
[1750701964888,0.0308,102950.0,102940.0,0.39568793]
[1750701965557,0.0308,102950.0,102940.0,0.47706482]
[1750701965801,0.0308,102950.0,102940.0,0.002]
[1750701965802,0.0628,102950.0,102940.0,0.002]
[1750701966032,0.67559768,102950.0,102940.0,0.203]
[1750701966263,1.13043792,102950.0,102940.0,0.002]
[1750701966487,0.41954085,102940.0,102930.0,2.9042319]
[1750701966718,1.13263792,102940.0,102930.0,3.1053519]
[1750701966951,0.405,102940.0,102930.0,3.1053519]
[1750701967185,0.405,102940.0,102930.0,3.1052319]
[1750701968916,0.50629939,102940.0,102930.0,3.1051919]
[1750701969358,1.11909707,102940.0,102930.0,3.1051919]
[1750701969800,1.11909707,102940.0,102930.0,2.9042319]
[1750701970020,1.13663792,102940.0,102930.0,3.1047919]
[1750701971183,1.13663792,102940.0,102930.0,3.1047119]
[1750701971623,1.13363792,102940.0,102930.0,3.1047119]
[1750701971845,1.13363792,102940.0,102930.0,2.9042319]
[1750701972279,1.13463792,102940.0,102930.0,2.9042319]
[1750701972511,0.50729939,102940.0,102930.0,2.9042319]
[1750701972740,1.12009707,102940.0,102930.0,3.1048319]
[1750701973416,1.13463792,102940.0,102930.0,3.1047919]
[1750701973629,1.12009707,102940.0,102930.0,3.1047919]
[1750701973848,0.067,102940.0,102930.0,3.1047919]
[1750701974081,0.407,102940.0,102930.0,3.1047919]
[1750701974533,0.002,102940.0,102930.0,3.1047919]